Cogmind - Beta 16.1 @@@ ROGUE MODE // 2026.03.27 @ 19:33:22 Player: AlmondRoll Result: Self-destructed Performance ------------- Evolutions (5) 2500 Regions Visited (6) 1200 Robots Destroyed (114) 570 Value Destroyed (2717) 2717 Prototype IDs (22) 440 Alien Tech Used (0) 0 Bonus (8388) 8388 TOTAL SCORE: 15815 Bonus ------- Triggered High Security 1000 High Alert Combat Kills 998 Follower Combat Kills 5590 Registered with UFD 300 Met Optimus in HQ 500 Cogmind --------- Core Integrity 550/1000 Matter 300/300 Energy 59/300 System Corruption 0% Temperature Cool (0) Movement Rolling (100) Location -5/Extension Parts ------- > --- POWER (1) -------- Angular Momentum Engine > --- PROPULSION (4) --- Compact Wheel Compact Wheel Compact Wheel > --- UTILITY (6) ------ Large Storage Unit Transport Network Coupler Improved Transmission Jammer Long-range Tractor Beam > --- WEAPON (6) ------- Heavy Rocket Launcher > --- INVENTORY (15) --- Compact Wheel Matter Compressor (250) Matter Compressor (250) Matter Compressor (250) Matter Compressor (250) Matter Compressor (250) Advanced Sensor Array Advanced Terrain Scanner Heavy Plasma Cannon Heavy Rocket Launcher CPS Tube (2) CPS Tube (2) CPS Tube (2) CPS Tube (2) Lance Peak State ------------ > --- POWER ------------ Reinforced Fission Core > --- PROPULSION ------- Compact Wheel Compact Wheel Compact Wheel Compact Wheel > --- UTILITY ---------- Humpback Improved Transmission Jammer Remote Force Field Hacking Suite System Shield > --- WEAPON ----------- 1B-0RG's Assimilator Lance > --- INVENTORY -------- Light Neutrino Core Reinforced Fission Core Armored Medium Treads Armored Medium Treads Armored Medium Treads Armored Medium Treads Advanced Heat Sink Advanced Heat Sink Matter Compressor Matter Compressor Matter Compressor Matter Compressor Matter Compressor Matter Compressor Matter Compressor Matter Compressor Advanced Sensor Array Seismic Detector Improved Targeting Computer Improved Targeting Computer Kinecellerator Improved Weapon Cycler A0-MCA's Component Scanner Long-range Tractor Beam Heavy Plasma Cannon Heavy Mass Driver Missile Launcher Heavy Missile Launcher Plasma Cutter CPS Tube CPS Tube CPS Tube CPS Tube CPS Tube [Rating: 117] Favorites ----------- Power Light Deuterium Engine Engine Light Deuterium Engine Power Core Light Neutrino Core Propulsion Compact Wheel Treads Light Treads Leg Aluminum Leg Wheel Compact Wheel Utility Humpback Device Seismic Detector Storage Humpback Processor Advanced Signal Interpreter Hackware Hacking Suite Protection Light Armor Plating Weapon Great Maul Energy Gun Subdweller Laser Energy Cannon Subdweller Beam Cannon Ballistic Gun Shotgun Launcher Heavy Missile Launcher Special Weapon CPS Tube Impact Weapon Great Maul Piercing Weapon Lance Special Melee Weapon Improved Datajack Build | -11 -10 -10 -8 -6 -5 -5 ------- Run | Yrd Mat Sub Scr Fac Fac Ext Slots Evolved 10 | . . . . 8 2 . Power . | . . . . . . . Propulsion 2 | . . . . 2 . . Utility 4 | . . . . 2 2 . Weapon 4 | . . . . 4 . . Parts Attached 104 | 1 7 15 12 32 26 11 Power 8 | . 1 1 2 1 2 1 Engine 4 | . . 1 2 . . 1 Core 4 | . 1 . . 1 2 . Reactor . | . . . . . . . Propulsion 29 | . . 4 5 8 9 3 Treads 6 | . . 3 3 . . . Leg . | . . . . . . . Wheel 23 | . . 1 2 8 9 3 Hover . | . . . . . . . Flight . | . . . . . . . Utility 41 | 1 4 2 2 18 10 4 Device 20 | 1 3 . . 9 6 1 Storage 12 | . 1 . 2 6 1 2 Processor 4 | . . . . 2 1 1 Hackware 2 | . . . . . 2 . Protection 3 | . . 2 . 1 . . Artifact . | . . . . . . . Weapon 26 | . 2 8 3 5 5 3 Energy Gun 3 | . . 3 . . . . Energy Cannon 5 | . . 3 . . 2 . Ballistic Gun 4 | . 2 2 . . . . Ballistic Cannon . | . . . . . . . Launcher 5 | . . . . 3 1 1 Special Weapon 3 | . . . 1 . 1 1 Impact Weapon 2 | . . . 1 1 . . Slashing Weapon . | . . . . . . . Piercing Weapon 1 | . . . . . 1 . Special Melee Weapon 3 | . . . 1 1 . 1 Unidentified Prototypes 3 | . . . . 2 1 . Corrupted Parts 2 | . . . . 2 . . System Corruption 6 | . . . . 6 . . Parts Lost 15 | . 1 1 . 3 3 7 Power 2 | . . . . 1 . 1 Propulsion 6 | . . 1 . 2 2 1 Utility 6 | . 1 . . . 1 4 Weapon 1 | . . . . . . 1 Highest Loss Streak 5 | . 1 1 . 2 2 5 To Critical Strikes 1 | . . . . . . 1 Average Backups 20 | 6 8 8 16 33 32 30 Power . | 1 1 . . . . . Propulsion 1 | 4 3 1 1 . 2 1 Utility 13 | . 1 4 12 20 17 18 Weapon 2 | 1 2 2 . 4 4 5 Tool/Special . | . . . . . . . Unused Backups 88 | . 5 7 18 8 29 21 Power 7 | . 1 . 2 1 2 1 Propulsion 16 | . . 5 . . 9 2 Utility 43 | . 1 . 12 4 17 9 Weapon 17 | . 3 2 4 3 1 4 Tool/Special 5 | . . . . . . 5 Average Slot Usage (%) 85 | . 98 99 90 65 69 69 Engine 9 | . 2 11 14 3 . . Core 1 | . 11 2 . 2 5 4 Treads 8 | . . 26 10 . . . Wheel 17 | . . 1 17 25 22 23 Device 7 | . 13 12 5 7 10 13 Storage 11 | . 14 14 13 6 5 5 Hackware 1 | . . . . . 10 6 Energy Gun 1 | . 9 6 . . . . Energy Cannon 1 | . . 9 . . . . Ballistic Gun 1 | . 18 12 . . . . Impact Weapon 8 | . . . 13 5 1 . Special Melee Weapon 9 | . . . 13 5 5 5 Peak Build Rating 117 | 7 12 18 34 104 117 115 Average Rating 48 | 6 10 12 27 100 109 109 On Entrance 40 | 6 7 12 18 31 101 107 Avg Prop Armor Cover (%) 4 | . . 5 4 2 . . Naked Turns . | . . . . . . . Heaviest Build 295 | 15 22 32 210 275 295 276 Greatest Support 64 | 20 20 40 43 64 64 64 Greatest Overweight (x) 17 | . 1 1 17 9 7 4 Average Overweight (x) 5 | . . . 9 4 4 3 Largest Inventory Capacity 35 | 8 10 10 35 35 35 35 Average Capacity 27 | 8 9 10 28 35 35 32 Most Carried 35 | 6 10 10 35 35 35 35 Average Carried 24 | 6 8 9 23 34 32 31 Final Capacity 35 | 8 10 10 35 35 35 15 Final Carried 35 | 6 10 10 35 34 31 15 Class Distribution -------------------- 62% | Hauler-Mutant 17% | Derelict-Mutant 11% | Mutant 7% | Scavenger-Mutant Dominant Class ---------------- Mutant | -10/Materials Mutant | -10/Subcaves Hauler-Mutant | -8/Scraptown Hauler-Mutant | -6/Factory Hauler-Mutant | -5/Factory Hauler-Mutant | -5/Extension Resources | -11 -10 -10 -8 -6 -5 -5 ----------- Run | Yrd Mat Sub Scr Fac Fac Ext Matter Collected 11829 | 224 152 409 330 4897 4058 1759 Remotely 5221 | . . . . 1803 2828 590 Salvage Created 6187 | 83 436 404 . 2947 1064 1253 Parts 183 | 4 21 30 . 42 35 51 Haulers Intercepted 6 | . 2 . . 1 . 3 Recyclers Shooed 15 | . 2 . . 5 8 . Parts Field Recycled . | . . . . . . . Retrieved Matter . | . . . . . . . Parts Self-Destructed 14 | . . 14 . . . . Prevented . | . . . . . . . Parts Restored . | . . . . . . . Kills | -11 -10 -10 -8 -6 -5 -5 ------- Run | Yrd Mat Sub Scr Fac Fac Ext Combat Hostiles Destroyed 44 | . 7 13 . 6 1 17 Guns 16 | . 7 9 . . . . Cannons 4 | . . 4 . . . . AOE 24 | . . . . 6 1 17 Classes Destroyed 15 | 2 6 2 . 3 1 1 Worker 15 | . 1 . . 8 5 1 Builder 9 | . . . . 1 4 4 Tunneler 5 | 1 1 . . 2 . 1 Hauler 6 | . 2 . . 1 . 3 Recycler 29 | 1 . . . 20 7 1 Mechanic 4 | . 1 . . . . 3 Watcher 2 | . 1 . . 1 . . Swarmer 7 | . 3 4 . . . . Grunt 20 | . 4 . . 4 . 12 Duelist 5 | . . . . 1 . 4 Protector 1 | . . . . 1 . . Sentry 1 | . . 1 . . . . Demolisher 1 | . . . . . . 1 Hunter 1 | . . . . . 1 . Subdweller 8 | . . 8 . . . . Best Kill Streak 15 | 2 7 4 . 4 2 15 Combat Bots Only 12 | . 7 4 . 4 1 12 Max Kills in Single Turn 3 | 1 2 1 . 2 2 3 Gunslinging . | . . . . . . . Exploded 3 | . . . . 2 1 3 Melee . | . . . . . . . Uniques/NPCs Destroyed . | . . . . . . . Combat | -11 -10 -10 -8 -6 -5 -5 -------- Run | Yrd Mat Sub Scr Fac Fac Ext Hostile Shots Fired 318 | . 29 63 . 130 49 47 Missed 103 | . 7 22 . 44 19 11 Hits 215 | . 22 41 . 86 30 36 Melee 1 | . . . . . . 1 Projectile 214 | . 22 41 . 86 30 35 AOE 12 | . . . . 1 2 9 Critical Strikes 7 | . . . . 4 1 2 Part Disruptions 1 | . . . . . 1 . Damage Taken 4441 | . 243 713 . 1507 1058 920 Core 997 | . 51 158 . 338 228 222 Absorbed by Shields 566 | . . . . 50 290 226 Redirected to Shielding 46 | . . . . 46 . . Regen/Repaired (Parts) 1086 | . . . . 473 424 189 Core Remaining (%) 58 | 100 . . 16 60 . . Volleys Fired 124 | 8 32 38 1 16 10 19 Largest 2 | 2 2 2 1 1 1 1 Hottest 140 | 70 70 140 . 36 90 39 Shots Fired 193 | 16 64 67 1 16 10 19 Gun 129 | 16 64 49 . . . . Cannon 22 | . . 18 . . 4 . Launcher 36 | . . . . 15 4 17 Special 6 | . . . 1 1 2 2 Kinetic 77 | 8 32 37 . . . . Thermal 74 | 8 32 30 . . 4 . Explosive 36 | . . . . 15 4 17 Electromagnetic . | . . . . . . . Robot Hit Streak 21 | 6 13 17 18 21 6 2 Robot Miss Streak 3 | 2 2 3 . 2 . 2 Penetration Max . | . . . . . . . Secondary Targets . | . . . . . . . Shots Hit Robots 281 | 10 43 46 80 44 30 28 Core Hits 182 | 3 22 24 . 37 26 70 Critical Kills 1 | . . 1 . . . . Critical Parts Destroyed 14 | . 1 . . 11 2 . Critical Strikes 22 | 1 4 1 . 11 4 1 Burn 4 | 1 3 . . . . . Destroy 2 | . 1 1 . . . . Smash 13 | . . . . 11 2 . Impale 3 | . . . . . 2 1 Melee Attacks 202 | . . . 79 51 43 29 Impact 64 | . . . . 51 13 . Slashing . | . . . . . . . Piercing 48 | . . . . . 30 18 Sneak Attacks 146 | . . . 76 28 20 22 Combat Hostiles . | . . . . . . . Follow-up Attacks . | . . . . . . . Damage Inflicted 13193 | 137 548 924 . 4898 2633 4053 Guns 1366 | 137 546 683 . . . . Cannons 305 | . . 241 . . 64 . Explosions 6076 | . . . . 1906 885 3285 Melee 5444 | . . . . 2992 1684 768 Ramming 2 | . 2 . . . . . Kinetic 852 | 60 271 521 . . . . Thermal 1162 | 77 275 403 . . 407 . Explosive 5733 | . . . . 1906 542 3285 Electromagnetic . | . . . . . . . Impact 3415 | . . . . 2992 423 . Slashing . | . . . . . . . Piercing 2029 | . . . . . 1261 768 Highest Corruption 6 | . . . . 6 . . Average Corruption 5 | . . . . 5 . . Corruption Purged . | . . . . . . . Corruption Blocked . | . . . . . . . Effects 32 | . . . . 32 . . Message Errors 12 | . . . . 12 . . Matter Fused 6 | . . . . 6 . . Heat Flow Errors 3 | . . . . 3 . . Energy Discharges 6 | . . . . 6 . . Parts Rejected 1 | . . . . 1 . . Data Loss (minor) 1 | . . . . 1 . . Data Loss (major) 1 | . . . . 1 . . Alerts 2 | . . . . 2 . . Overload Shots . | . . . . . . . Overflow Damage 2573 | . . . . 1985 459 129 Projectiles 1 | . . . . . 1 . Explosions 131 | . . . . 39 38 54 Melee 2441 | . . . . 1946 420 75 Knockbacks 16 | . . . . 12 4 . Impact 15 | . . . . 11 4 . Kinetic . | . . . . . . . Secondary 1 | . . . . 1 . . Self-Inflicted Damage 74 | . . . . 32 42 . Shots 2 | . . . . 1 1 . Rammed . | . . . . . . . Targets Rammed 1 | . 1 . . . . . Kicked 1 | . 1 . . . . . Crushed . | . . . . . . . Highest Temperature 263 | 72 219 54 . 263 34 . Average Temperature 59 | 37 62 25 . 100 16 . Received Heat Transfer 853 | . 75 156 . 356 132 134 Siege Activations . | . . . . . . . Martial Activations . | . . . . . . . Shielding Activations . | . . . . . . . Robots Disrupted . | . . . . . . . Combat Hostiles . | . . . . . . . Robots Corrupted 20 | . . . . 16 4 . Combat Hostiles . | . . . . . . . Parts Fried 53 | . . . . 45 8 . Impact Corruptions 64 | . . . . 55 9 . Robots Melted . | . . . . . . . Combat Hostiles . | . . . . . . . Parts Melted 3 | . 2 1 . . . . Heat Transferred 2216 | 296 1036 533 . . 351 . Parts Sabotaged . | . . . . . . . Parts Stolen . | . . . . . . . Parts Stripped . | . . . . . . . Power Chain Reactions . | . . . . . . . Alert | -11 -10 -10 -8 -6 -5 -5 ------- Run | Yrd Mat Sub Scr Fac Fac Ext Maximum Alert Level 5 | . . . . 4 5 5 Low Security (%) 14 | 100 100 . . 15 . . Level 1 1 | . . . . 2 . . Level 2 19 | . . . . 40 3 . Level 3 18 | . . . . 18 33 . Level 4 35 | . . . . 23 46 63 Level 5 . | . . . . . . . High Security 10 | . . . . . 16 35 Max Security . | . . . . . . . Peak Influence 2968 | 5 141 . . 1491 2338 2968 Initial 1145 | . 3 . . . 653 1145 Average 1006 | 1 61 . . 724 1302 1701 Influence Increases 7559 | 10 217 160 . 2322 2517 2333 Destroy 0b10 Robot/C 3700 | . 140 100 . 1060 1240 1160 Destroy 0b10 Robot/NC 455 | 10 30 . . 200 130 85 Destroy Leader 638 | . 36 . . 250 228 124 Allied During Kill 1906 | . . . . 469 698 739 Successful Hack 67 | . 9 . . 16 30 12 Disable Machine 180 | . . . . 60 75 45 Anti-Garrison Action 150 | . . . . 150 . . Destroy Structure 358 | . 2 . . 72 116 168 Lose Combat Pursuer 105 | . . 60 . 45 . . Influence Decreases 4637 | 5 222 160 . 987 1514 1749 Entered New Map 1877 | . 2 . . . 682 1193 Time Decay 1890 | 5 210 160 . 627 562 326 Lost Part 140 | . 10 . . 30 30 70 Lost Ally 580 | . . . . 180 240 160 Purge Threat 150 | . . . . 150 . . Squads Dispatched 64 | . . . . 24 23 17 Investigation 9 | . . . . 6 3 . Extermination 9 | . . . . 6 3 . Reinforcement 13 | . . . . 6 5 2 Assault 32 | . . . . 6 11 15 Garrison 1 | . . . . . 1 . Intercept . | . . . . . . . Searches Triggered . | . . . . . . . Construction Impeded 7 | . . . . 3 3 1 Haulers Reinforced 1 | . . . . 1 . . Active Scanning Responses . | . . . . . . . Cargo Convoy Interrupts 1 | . . . . . 1 . Stealth | -11 -10 -10 -8 -6 -5 -5 --------- Run | Yrd Mat Sub Scr Fac Fac Ext Distress Signals 6 | . . . . 1 2 3 Communications Jammed 29 | . . . . . 19 10 Distress Signals 21 | . . . . . 11 10 Times Spotted 227 | . 9 14 . 73 67 64 Peak Tracking Total 7 | . 7 6 . 6 5 7 Tactical Retreats 5 | . . 2 . 3 . . Traps | -11 -10 -10 -8 -6 -5 -5 ------- Run | Yrd Mat Sub Scr Fac Fac Ext Traps Triggered 4 | . . 2 . . 2 . Indirectly . | . . . . . . . Trap Hack Attempts . | . . . . . . . Triggered . | . . . . . . . Disarmed . | . . . . . . . Reprogrammed . | . . . . . . . Reused . | . . . . . . . Traps Extracted . | . . . . . . . Installed . | . . . . . . . Triggered . | . . . . . . . Machines | -11 -10 -10 -8 -6 -5 -5 ---------- Run | Yrd Mat Sub Scr Fac Fac Ext Machines Disabled 15 | . . 1 . 5 5 4 Max in Single Turn 2 | . . 1 . 1 2 1 Garrison Access 2 | . . . . 1 1 . Energy Cycler 2 | . . . . . . 2 Machines Repaired . | . . . . . . . Machines Dismantled . | . . . . . . . Machines Sabotaged . | . . . . . . . Overloaded Fab Kills . | . . . . . . . Hacking | -11 -10 -10 -8 -6 -5 -5 --------- Run | Yrd Mat Sub Scr Fac Fac Ext Machines Accessed 24 | . 2 1 3 9 6 3 Terminals 9 | . 2 . . 2 2 3 Fabricators . | . . . . . . . Repair Stations . | . . . . . . . Recycling Units 9 | . . . . 6 3 . Scanalyzers . | . . . . . . . Garrison Access 2 | . . . . 1 1 . Total Hacks 56 | . 4 1 4 22 20 5 Successful 31 | . 3 1 4 5 16 2 Failed 25 | . 1 . . 17 4 3 Catastrophic 6 | . . . . 4 1 1 Database Lockouts . | . . . . . . . Manual 33 | . 3 . . 17 12 1 Terminals 17 | . 4 . . 5 3 5 Fabricators . | . . . . . . . Repair Stations . | . . . . . . . Recycling Units 32 | . . . . 16 16 . Scanalyzers . | . . . . . . . Garrison Access 2 | . . . . 1 1 . Terminal Hacks 11 | . 1 1 4 2 1 2 Record 4 | . . . 4 . . . Robot Analysis 2 | . 1 . . . . 1 Open Door 1 | . . . . . . 1 Branch Access Points 1 | . . . . . 1 . Unreport Threat 1 | . . . . 1 . . Registered Components 1 | . . . . 1 . . Proto ID Catalog 1 | . . 1 . . . . Fabricator Hacks . | . . . . . . . Repair Station Hacks . | . . . . . . . Recycling Unit Hacks 3 | . . . . . 3 . Retrieve Components 3 | . . . . . 3 . Scanalyzer . | . . . . . . . Garrison Access Hacks 1 | . . . . . 1 . Seal Access 1 | . . . . . 1 . Unauthorized Hacks 16 | . 2 . . 3 11 . Terminals 3 | . 2 . . . 1 . Botnet 1 | . . . . . 1 . Skim 2 | . 2 . . . . . Fabricators . | . . . . . . . Repair Stations . | . . . . . . . Recycling Units 13 | . . . . 3 10 . Monitor 2 | . . . . . 2 . Reject 2 | . . . . . 2 . Recyclers 1 | . . . . . 1 . Mask 2 | . . . . . 2 . Fedlink 6 | . . . . 3 3 . Scanalyzers . | . . . . . . . Garrison Access . | . . . . . . . Data Cores Recovered 1 | . . . . . . 1 Used . | . . . . . . . Hacking Detections 14 | . 2 . . 6 3 3 Full Trace Events 3 | . . . . 3 . . Feedback Events . | . . . . . . . Feedback Blocked . | . . . . . . . Robot Schematics Acquired . | . . . . . . . Robots Built . | . . . . . . . Authchips . | . . . . . . . Time . | . . . . . . . Total Robot Build Rating . | . . . . . . . Part Schematics Acquired . | . . . . . . . Parts Built . | . . . . . . . Authchips . | . . . . . . . Time . | . . . . . . . Total Part Build Rating . | . . . . . . . Part Studies Acquired . | . . . . . . . Parts Repaired . | . . . . . . . Time . | . . . . . . . Parts Recycled . | . . . . . . . Recycled Matter . | . . . . . . . Retrieved Matter . | . . . . . . . Retrieved Components 19 | . . . . . 19 . Parts Scanalyzed . | . . . . . . . Part Schematics Acquired . | . . . . . . . Parts Damaged . | . . . . . . . Bothacking | -11 -10 -10 -8 -6 -5 -5 ------------ Run | Yrd Mat Sub Scr Fac Fac Ext Used RIF Installer . | . . . . . . . Robots Hacked 66 | . . . 65 . . 1 Non-combat 19 | . . . 18 . . 1 Combat 47 | . . . 47 . . . Robot Hacks Applied 77 | . . . 76 . . 1 parse_system 76 | . . . 76 . . . find_recycling 1 | . . . . . . 1 Relay Couplers Released 2 | . . . . 2 . . Machine Destruction 2 | . . . . 2 . . Fabnet Peak Effective % . | . . . . . . . Robots Rewired 2 | . . . . . . 2 Allies Hacked 3 | . . . . 1 1 1 Hacks Repelled 1 | . . . . . 1 . Allies | -11 -10 -10 -8 -6 -5 -5 -------- Run | Yrd Mat Sub Scr Fac Fac Ext Total Allies 6 | . . . 1 . 1 4 Largest Group 4 | . . . 1 1 1 4 Highest-Rated Group 314 | . . . 79 79 115 314 Highest-Rated Ally 159 | . . . 79 79 115 159 Initial UFD Resources 57 | . . . . 23 41 57 Total Orders 1 | . . . . . 1 . AID 1 | . . . . . 1 . Ally Attacks 765 | . . . . 170 304 291 Total Damage 27370 | . . . . 6754 11000 9616 Kills 172 | . . . . 54 73 45 Allies Corrupted 6 | . . . . 1 4 1 Allies Melted 4 | . . . . 1 2 1 Borg Created 32 | . . . . 16 13 3 Largest Collective 7 | . . . . 7 5 6 Intel | -11 -10 -10 -8 -6 -5 -5 ------- Run | Yrd Mat Sub Scr Fac Fac Ext Active Infowar (turns) 13115 | 2 410 2312 4433 2873 1961 1124 Sensors 2565 | . . . . 2172 393 . Terrain 1667 | . . . . 666 802 199 Structural 69 | . . . . . 69 . Seismic 10352 | 2 410 2312 4433 686 1572 937 T.N.C. 540 | . . . . . . 540 Jamming 1221 | . . . . . 210 1011 Robot Analysis Total 2 | . 1 . . . . 1 Derelict Logs Recovered 6 | . . 2 4 . . . Drone Launches . | . . . . . . . Drone Recoveries . | . . . . . . . Exploration | -11 -10 -10 -8 -6 -5 -5 ------------- Run | Yrd Mat Sub Scr Fac Fac Ext Turns Passed 20335 | 31 495 2494 11080 3103 2008 1124 Spaces Moved 8435 | 5 198 1327 3659 1653 1000 593 Core . | . . . . . . . Treads 3044 | . . 1325 1719 . . . Legs 205 | 5 198 2 . . . . Wheels 5186 | . . . 1940 1653 1000 593 Hover . | . . . . . . . Flight . | . . . . . . . Fastest Speed 90 | 120 120 160 90 140 155 100 Average Speed 217 | 120 127 166 294 156 158 154 Slowest Speed 345 | 120 190 240 345 230 191 160 Overloaded Moves . | . . . . . . . Propulsion Burnouts . | . . . . . . . Robots Hopped . | . . . . . . . Potential Cave-ins . | . . . . . . . Cave-ins Triggered . | . . . . . . . Exploration Rate (%) 51 | 2 44 64 95 55 26 75 Regions Visited 6 Branch Regions 3 Pre-discovered Areas 4 | . . 1 2 1 . . Known Exits Taken 2 | . . . . 1 1 . Unknown Exits Taken 4 | 1 1 1 1 . . . Scrap Searched 16 | . . 4 12 . . . Spaces Dug 45 | . . . . 19 25 1 Terrain Destroyed 216 | . . 1 . 52 41 122 Melee 24 | . . . . 12 11 1 Projectile 1 | . . 1 . . . . AOE 191 | . . . . 40 30 121 Terrain Rammed . | . . . . . . . Walls Destroyed . | . . . . . . . Machines Disabled . | . . . . . . . Actions | -11 -10 -10 -8 -6 -5 -5 --------- Run | Yrd Mat Sub Scr Fac Fac Ext Total 9978 | 13 381 1538 3989 2010 1311 736 Wait 617 | . 125 113 138 154 71 16 Move 8429 | 4 197 1326 3658 1652 999 593 Hop . | . . . . . . . Pick Up 190 | . 9 12 63 30 49 27 Fast Attach 29 | 1 3 4 7 6 3 5 Attach 18 | . . 1 1 6 7 3 Detach 1 | . . 1 . . . . Swap 173 | . 4 22 7 54 61 25 Drop 159 | . 10 21 35 25 54 14 Fire 124 | 8 32 38 1 16 10 19 Melee 202 | . . . 79 51 43 29 Ram . | . . . . . . . Kick 1 | . 1 . . . . . Crush . | . . . . . . . Escape Stasis . | . . . . . . . Rewire 3 | . . . . . 1 2 Trap . | . . . . . . . Miscellaneous 32 | . . . . 16 13 3 Route ------- -11/Scrapyard -10/Materials (discovered 3 exits: [*Mat] / [*Min] / *Sub) -10/Subcaves (discovered 3 exits: [*Mat x2] / *Scr) -8/Scraptown (discovered 2 exits: *Fac x2) -6/Factory (discovered 2 exits: *Fac / [*Low]) -5/Factory (discovered 5 exits: [*Fac] / Upp x2 / *Ext x2) -5/Extension (discovered 1 exit: [*Fac]) History --------- Turn | Location | Event 26 | -11/Scrapyard | Discovered new exit (range 3) 32 | -11/Scrapyard | Entered Materials 126 | -10/Materials | Destroyed 7 combat bots 207 | -10/Materials | Discovered new exit (range 9) 304 | -10/Materials | Build established: Mutant 362 | -10/Materials | Discovered new exit (range 16) 515 | -10/Materials | Discovered new exit (range 6) 527 | -10/Materials | Entered Subcaves 528 | -10/Subcaves | Approached by a straggling Scientist 817 | -10/Subcaves | Scientist uncovered a shortcut to Scraptown 1051 | -10/Subcaves | Shifting Twisted Machinery released Sub. Machine Gun 1065 | -10/Subcaves | Shifting Twisted Machinery released Barrage Gun 1358 | -10/Subcaves | Core integrity fell below 50% 1417 | -10/Subcaves | Discovered new exit (range 5) 1716 | -10/Subcaves | A swath of the cavern ceiling suddenly collapsed 1763 | -10/Subcaves | Learned Materials emergency access door positions 2027 | -10/Subcaves | Disturbed a concealed Subdweller 2334 | -10/Subcaves | Build established: Scavenger-Mutant 2501 | -10/Subcaves | Learned location of Storage (-8) 2545 | -10/Subcaves | Ambushed by Subdwellers from Twisted Machinery 2666 | -10/Subcaves | Discovered new exit (range 7) 2725 | -10/Subcaves | Core integrity fell below 20% 2736 | -10/Subcaves | Visited 4L-MR0's lab 2761 | -10/Subcaves | Found Prototype Special Melee Weapon 3021 | -10/Subcaves | Entered Scraptown 3189 | -8/Scraptown | Visited Bundlers 3326 | -8/Scraptown | Received an X-ray algorithm 3372 | -8/Scraptown | Scanned Subdweller tech in exchange for log data 3377 | -8/Scraptown | Learned Research trap positions 3379 | -8/Scraptown | Learned location of Zion (-7) 3381 | -8/Scraptown | Learned Factory trap positions 3384 | -8/Scraptown | Learned location of Extension (-5) 3868 | -8/Scraptown | Build established: Mutant 4182 | -8/Scraptown | Build established: Derelict-Mutant 4381 | -8/Scraptown | Discovered new exit (range 3) 4649 | -8/Scraptown | Visited SPCMW 4714 | -8/Scraptown | Visited Red Mages 4805 | -8/Scraptown | Visited Awakened 4871 | -8/Scraptown | Visited Cyclists 4960 | -8/Scraptown | Visited UFD Registry 4960 | -8/Scraptown | Registered with UFD as "Metacycle" 5016 | -8/Scraptown | Visited Shadow of the Wyrm 5243 | -8/Scraptown | Entered Cyclist Reading Room 5856 | -8/Scraptown | Visited IN-MT5's Study 6140 | -8/Scraptown | Visited Chapter 10 6294 | -8/Scraptown | Visited Junk Repository 6370 | -8/Scraptown | Visited Research Penetration Think Tank 6467 | -8/Scraptown | Delivered Scrap Shield to a Scientist 6783 | -8/Scraptown | Visited LU-1G1's Boring Crew 6881 | -8/Scraptown | Visited Scrap Suit Storage 6968 | -8/Scraptown | Visited DA-N13 Charitable Foundation 6996 | -8/Scraptown | Found DCF Scrap (27 items) 7090 | -8/Scraptown | Visited Botcube Research 7150 | -8/Scraptown | Visited A0-MCA Data Center 7165 | -8/Scraptown | Given a C rating by A0-MCA 7167 | -8/Scraptown | Found A0-MCA's Component Scanner 7666 | -8/Scraptown | Visited Scrapoid Research Area 7729 | -8/Scraptown | Build established: Hauler-Mutant 7787 | -8/Scraptown | Found Scrap Suit 7791 | -8/Scraptown | Found Scrap Suit 8160 | -8/Scraptown | Discovered new exit (range 5) 10742 | -8/Scraptown | Found Lrg. Botcube 13720 | -8/Scraptown | Lrg. Botcube activated 13758 | -8/Scraptown | Lrg. Botcube completed mutation into treaded form, armed with 1 gun, 3 cannons. 13765 | -8/Scraptown | Attached CPS modules to Large Mutated Botcube. 14008 | -8/Scraptown | Met Optimus 14008 | -8/Scraptown | Accepted into 0bPrime 14101 | -8/Scraptown | Entered Factory 14101 | -6/Factory | Accompanied by 1 ally 14101 | -6/Factory | Evolved 8 slots: Propulsion x2, Utility x2, Weapon x4 14102 | -6/Factory | Loaded intel: 105 trap records 14102 | -6/Factory | Identified 1B-0RG's Assimilator 14380 | -6/Factory | Assimilating Soldier 5a into Collective. 14386 | -6/Factory | Assimilating Soldier 5b into Collective. 14550 | -6/Factory | Assimilating Soldier 5c into Collective. 15096 | -6/Factory | Assimilating Informer 5a into Collective. 15138 | -6/Factory | Discovered new exit (range 18) 15178 | -6/Factory | Discovered new exit (range 7) 15563 | -6/Factory | Assimilating Smith 5a into Collective. 15579 | -6/Factory | Loaded intel: 8 recycling unit locations 15723 | -6/Factory | Spotted B-75 Beast 15732 | -6/Factory | Allies destroyed B-75 Beast 15761 | -6/Factory | Lost 3 allies 15997 | -6/Factory | Assimilating Engineer 5a into Collective. 16132 | -6/Factory | Learned location of Protoforge (-2) 16201 | -6/Factory | First assault squad dispatched 16206 | -6/Factory | Assimilating Soldier 5d into Collective. 16211 | -6/Factory | Assimilating Soldier 5e into Collective. 16333 | -6/Factory | Assimilating Soldier 5f into Collective. 16347 | -6/Factory | Assimilating Soldier 5g into Collective. 16370 | -6/Factory | Assimilating Fighter 5a into Collective. 16378 | -6/Factory | Assimilating Angel 5a into Collective. 16423 | -6/Factory | Assimilating Soldier 5h into Collective. 16447 | -6/Factory | Assimilating Soldier 5i into Collective. 16479 | -6/Factory | Assimilating Soldier 5j into Collective. 16591 | -6/Factory | Attached CPS modules to Borg Angel 5a. 17173 | -6/Factory | Assimilating Slayer 5a into Collective. 17194 | -6/Factory | Identified exit to Factory 17204 | -6/Factory | Entered another Factory area 17204 | -5/Factory | Accompanied by 6 allies 17204 | -5/Factory | Evolved 2 slots: Utility x2 17290 | -5/Factory | Loaded intel: 8 recycling unit locations 17371 | -5/Factory | Identified exit to Upper Caves 17371 | -5/Factory | Identified exit to Extension 17732 | -5/Factory | Assimilating Sentinel 6a into Collective. 17754 | -5/Factory | Discovered new exit (range 26) 17793 | -5/Factory | Assimilating Sage 6a into Collective. 17951 | -5/Factory | Cargo convoy interrupted 17980 | -5/Factory | Assimilating Smith 6a into Collective. 18016 | -5/Factory | Assimilating Slayer 6a into Collective. 18104 | -5/Factory | First assault squad dispatched 18123 | -5/Factory | Assimilating Soldier 6a into Collective. 18132 | -5/Factory | Assimilating Soldier 6b into Collective. 18154 | -5/Factory | Assimilating Sentinel 6b into Collective. 18158 | -5/Factory | Attached CPS modules to H-71 Marshal. 18250 | -5/Factory | Assimilating Veteran 6a into Collective. 18302 | -5/Factory | Attached CPS modules to H-71 Marshal. 18344 | -5/Factory | Assimilating Disruptor 6a into Collective. 18461 | -5/Factory | Assimilating Sage 6b into Collective. 18468 | -5/Factory | Assimilating Sage 6c into Collective. 18491 | -5/Factory | Assimilating Sage 6d into Collective. 18499 | -5/Factory | Assimilating Archangel 6a into Collective. 18670 | -5/Factory | Found Lrg. Botcube 18756 | -5/Factory | Lrg. Botcube activated 18792 | -5/Factory | Lrg. Botcube completed mutation into treaded form, armed with 3 cannons. 18883 | -5/Factory | High security lockdown imminent 18963 | -5/Factory | High security lockdown engaged 19212 | -5/Factory | Entered Extension 19212 | -5/Extension | Accompanied by 4 allies 19294 | -5/Extension | Assimilating Soldier 6c into Collective. 19458 | -5/Extension | Assimilating Sentinel 6c into Collective. 19462 | -5/Extension | Rescued A7 19545 | -5/Extension | Energy Cycler disabled 19546 | -5/Extension | Rescued a captive Derelict 19761 | -5/Extension | Assimilating Fighter 6a into Collective. 19812 | -5/Extension | First assault squad dispatched 19932 | -5/Extension | High security lockdown imminent 19955 | -5/Extension | Spotted B-75 Beast 19959 | -5/Extension | Allies destroyed B-75 Beast 19963 | -5/Extension | Attached CPS modules to Large Mutated Botcube. 19966 | -5/Extension | Attached CPS modules to A7. 19980 | -5/Extension | Discovered new exit (range 18) 19995 | -5/Extension | Allies destroyed B-75 Beast 20012 | -5/Extension | High security lockdown engaged 20247 | -5/Extension | Destroyed 12 combat bots 20336 | -5/Extension | Self-destructed Last Messages --------------- 20323_ Lgt. Neutrino Core destroyed. 20326_ Penetrated by Slug. 20328_ The unstable cave ceiling collapses. 20328_ Acquired Angular Momentum Engine. 20329_ Acquired 10 matter. 20330_ C-45 Heavy ARC bursts open, deploying its payload. 20330_ G-67 Veteran unfolds itself. 20330_ G-50 Soldier unfolds itself. 20330_ I-47 Archangel unfolds itself. 20330_ I-47 Archangel distress signal jammed. 20330_ Penetrated by Slug. 20331_ Acquired 10 matter. 20331_ The unstable cave ceiling collapses. 20331_ I-47 Archangel distress signal jammed. 20333_ Penetrated by Slug. 20333_ Critical hit (Destroy). 20333_ 1B-0RG's Assimilator destroyed. 20333_ Com. Wheel destroyed. 20334_ Remote Force Field destroyed. 20335_ The unstable cave ceiling collapses. Map ----- +----------------------------------------------------+ | | | | | | | | | | | | | | | | | | | | | | | | | | | | | | | | | | | | | | | | | ?????###### # # #??????????????????????????? | | ??#### ## # # #??????????????????????????? | | ##### # # # #### # # ###########????????????????? | | ! ] # #????????????????? | | / ! # ### #????????????????? | | ! ! = %! @ g g #????????????????? | | g [! %%!=[ Y g % ?????????? | | | %p% !%! gC # i g????????? | | # !## #????? ?????????? | | ## #????????????????? | | # # # ###### ####????????????????? | | # # ! #?????##???????????????????? | | # # #??????????????????????????? | | ### #??????????????????????????? | | #??????????????????????????? | | #??????????????????????????? | | #??????????????????????????? | | # #??????????????????????????? | | # ! #??????????????????????????? | | ## #??????????????????????????? | | ######## ##############??????????????????????????? | | ???????##????????????????????????????????????????? | | ?????????????????????????????????????????????????? | | ?????????????????????????????????????????????????? | | ?????????????????????????????????????????????????? | | ?????????????????????????????????????????????????? | | ?????????????????????????????????????????????????? | | ?????????????????????????????????????????????????? | | ?????????????????????????????????????????????????? | | ?????????????????????????????????????????????????? | +----------------------------------------------------+ Best States ------------- Heat Dissipation 40 Energy Generation 19 Energy Capacity 310 Matter Stores 540 Matter Capacity 800 Sight Range 16 Robot Scan Range 16 Terrain Scan Range 20 Terrain Scan Density 110 Jamming Range 14 Additional Mass Support 9 Armor Coverage 150 Utility Shielding 66 Evasion (%) 55 Recoil Reduction 2 Matter Filtering 45 Offensive Hacking 10 Defensive Hacking 10 Authchip Count 1 Item Schematics ----------------- None Robot Schematics ------------------ None Fabricated ------------ Nothing Repaired ---------- Nothing Studied --------- None Alien Tech Used ----------------- None Achievements -------------- Frankenstein Hackathon Challenges ------------ None Game ------ Seed CombatBlinkMegatreads Manual? 0 Play Time 03:51:41 Cumulative 511.5 hours Start 2026.03.27 @ 15:02:01 End 2026.03.27 @ 19:33:22 Sessions 1 Manual Loads 0 Difficulty Rogue Special Mode None Game No. 234 Rogue 234 Adventurer 0 Explorer 0 Win Type - Total 15 Types 8/0/5/2/0/0/0/0/0/0 Lore% 82 Gallery% 75 Achievement% 60 Wizard Run 0 Options --------- Layout 0 ASCII 0 Keyboard 0 Movement Numpad Keybinds 0 Fullscreen 1 Font 18/SmallcapsGlow Map View 76x50 Zoom Use 0% Tactical HUD 1 Map Filters NONE Filters NONE Steam 1 RUN: be9455f6-e5c5-45a2-be82-d40e74b5b6d3